[Event "*** Titled Tuesday Blitz"]
[Site "Chess.com"]
[Date "2020.12.29"]
[Round "5"]
[White "Jumbo"]
[Black "SARGISMV"]
[Result "1-0"]
[WhiteElo "2820"]
[BlackElo "2463"]
[TimeControl "180+1"]
[EndTime "10:54:23 PST"]
[Termination "Jumbo won on time"]

1. d4 {[%clk 0:03:00.9]} 1... Nf6 {[%clk 0:02:58]} 2. c3 {[%clk 0:03:00.6]} 2...
c5 {[%clk 0:02:57.9]} 3. dxc5 {[%clk 0:03:00.2]} 3... Na6 {[%clk 0:02:57.3]} 4.
b4 {[%clk 0:02:59.7]} 4... g6 {[%clk 0:02:56.7]} 5. g3 {[%clk 0:02:48.9]} 5...
Bg7 {[%clk 0:02:56.4]} 6. Bg2 {[%clk 0:02:49.2]} 6... O-O {[%clk 0:02:56.9]} 7.
a3 {[%clk 0:02:47]} 7... Re8 {[%clk 0:02:28.4]} 8. Nh3 {[%clk 0:02:46]} 8... Rb8
{[%clk 0:02:27.4]} 9. O-O {[%clk 0:02:27.7]} 9... b6 {[%clk 0:02:25.8]} 10. cxb6
{[%clk 0:02:28.6]} 10... Qxb6 {[%clk 0:02:23.7]} 11. Be3 {[%clk 0:02:26.7]}
11... Qc7 {[%clk 0:02:23]} 12. Nf4 {[%clk 0:02:25.7]} 12... Bb7 {[%clk 0:02:20]}
13. Bxa7 {[%clk 0:02:25.2]} 13... Rbc8 {[%clk 0:02:06.3]} 14. Be3 {[%clk
0:02:22.8]} 14... Bxg2 {[%clk 0:02:02.9]} 15. Nxg2 {[%clk 0:02:17.7]} 15... Ne4
{[%clk 0:01:46.8]} 16. Ra2 {[%clk 0:02:15.8]} 16... Nxc3 {[%clk 0:01:38.3]} 17.
Nxc3 {[%clk 0:02:15.3]} 17... Qxc3 {[%clk 0:01:37.9]} 18. Qd3 {[%clk 0:02:05.7]}
18... Qxd3 {[%clk 0:01:12.8]} 19. exd3 {[%clk 0:02:06.6]} 19... Rc3 {[%clk
0:01:13]} 20. Nf4 {[%clk 0:02:05.7]} 20... e5 {[%clk 0:00:52.1]} 21. Ne2 {[%clk
0:01:50.6]} 21... Rxd3 {[%clk 0:00:52]} 22. Rc1 {[%clk 0:01:48.5]} 22... d5
{[%clk 0:00:49.4]} 23. b5 {[%clk 0:01:48]} 23... d4 {[%clk 0:00:41.6]} 24. Bd2
{[%clk 0:01:37.8]} 24... Nb8 {[%clk 0:00:40.5]} 25. a4 {[%clk 0:01:33.3]} 25...
Rb3 {[%clk 0:00:40.5]} 26. Rc7 {[%clk 0:01:32.8]} 26... e4 {[%clk 0:00:39.8]}
27. Kg2 {[%clk 0:01:29.2]} 27... Be5 {[%clk 0:00:36.2]} 28. Rb7 {[%clk
0:01:29.5]} 28... Rc8 {[%clk 0:00:35.6]} 29. a5 {[%clk 0:01:26.7]} 29... e3
{[%clk 0:00:24.3]} 30. fxe3 {[%clk 0:01:24.9]} 30... dxe3 {[%clk 0:00:25.2]} 31.
Bc1 {[%clk 0:01:13.3]} 31... Rc5 {[%clk 0:00:10]} 32. a6 {[%clk 0:01:10.3]}
32... Bd6 {[%clk 0:00:02.9]} 33. a7 {[%clk 0:01:08.8]} 33... Rf5 {[%clk
0:00:02.7]} 34. Bxe3 {[%clk 0:01:06.7]} 34... Rxe3 {[%clk 0:00:03.6]} 35. Rxb8+
{[%clk 0:01:06.5]} 35... Kg7 {[%clk 0:00:03.6]} 36. a8=Q {[%clk 0:01:06.1]}
36... Bc5 {[%clk 0:00:03.4]} 37. Rg8+ {[%clk 0:01:03.8]} 37... Kh6 {[%clk
0:00:03.7]} 38. Nf4 {[%clk 0:01:00]} 38... g5 {[%clk 0:00:03]} 39. Qc6+ {[%clk
0:00:58.3]} 39... f6 {[%clk 0:00:03.4]} 40. Qd7 {[%clk 0:00:56.7]} 1-0

[Event "*** Titled Tuesday Blitz"]
[Site "Chess.com"]
[Date "2020.12.29"]
[Round "5"]
[White "Loy_Konstantin"]
[Black "Susal_De_Silva"]
[Result "0-1"]
[WhiteElo "2398"]
[BlackElo "2570"]
[TimeControl "180+1"]
[EndTime "10:54:23 PST"]
[Termination "Susal_De_Silva won by resignation"]

1. e4 {[%clk 0:03:00.5]} 1... e5 {[%clk 0:02:58.8]} 2. Nf3 {[%clk 0:03:00.1]}
2... d6 {[%clk 0:02:57.9]} 3. d4 {[%clk 0:02:59.4]} 3... exd4 {[%clk 0:02:58.3]}
4. Nxd4 {[%clk 0:02:59.2]} 4... Nf6 {[%clk 0:02:58.3]} 5. Nc3 {[%clk 0:02:59.7]}
5... Be7 {[%clk 0:02:58.2]} 6. Bf4 {[%clk 0:03:00]} 6... O-O {[%clk 0:02:57.6]}
7. Qd2 {[%clk 0:03:00.4]} 7... c6 {[%clk 0:02:57.2]} 8. Be2 {[%clk 0:02:43.9]}
8... a5 {[%clk 0:02:55.6]} 9. a4 {[%clk 0:02:41.7]} 9... Re8 {[%clk 0:02:54]}
10. O-O {[%clk 0:02:41.3]} 10... Bf8 {[%clk 0:02:53.1]} 11. f3 {[%clk 0:02:38]}
11... Na6 {[%clk 0:02:52.1]} 12. Nb3 {[%clk 0:02:32.8]} 12... d5 {[%clk
0:02:48.7]} 13. Bxa6 {[%clk 0:02:29.1]} 13... Rxa6 {[%clk 0:02:44]} 14. Rad1
{[%clk 0:02:23.3]} 14... Be6 {[%clk 0:02:33.7]} 15. Kh1 {[%clk 0:01:59.7]} 15...
Bb4 {[%clk 0:02:29.5]} 16. Bg5 {[%clk 0:01:52.2]} 16... h6 {[%clk 0:02:24.2]}
17. Bxf6 {[%clk 0:01:35.3]} 17... Qxf6 {[%clk 0:02:22.4]} 18. exd5 {[%clk
0:01:35.7]} 18... Bxc3 {[%clk 0:02:17.9]} 19. Qxc3 {[%clk 0:01:25.1]} 19... Qxc3
{[%clk 0:02:15.4]} 20. bxc3 {[%clk 0:01:26]} 20... Bxd5 {[%clk 0:02:14.7]} 21.
Rfe1 {[%clk 0:01:09.3]} 21... Rxe1+ {[%clk 0:02:10.8]} 22. Rxe1 {[%clk
0:01:10.2]} 22... b5 {[%clk 0:02:04.4]} 23. Nc5 {[%clk 0:01:03.1]} 23... Ra7
{[%clk 0:01:58.3]} 24. Ra1 {[%clk 0:01:00.7]} 24... Kf8 {[%clk 0:01:53.8]} 25.
Kg1 {[%clk 0:00:57.5]} 25... Ke7 {[%clk 0:01:52.9]} 26. Kf2 {[%clk 0:00:56.5]}
26... Kd6 {[%clk 0:01:53]} 27. Nb3 {[%clk 0:00:57.1]} 27... b4 {[%clk 0:01:48]}
28. cxb4 {[%clk 0:00:51.8]} 28... axb4 {[%clk 0:01:48.8]} 29. a5 {[%clk
0:00:51.3]} 29... c5 {[%clk 0:01:48.5]} 30. Ke3 {[%clk 0:00:48.9]} 30... c4
{[%clk 0:01:48]} 31. Nd4 {[%clk 0:00:42.6]} 31... Kc5 {[%clk 0:01:43]} 32. Nf5
{[%clk 0:00:37]} 32... g6 {[%clk 0:01:36.4]} 33. Nxh6 {[%clk 0:00:30.4]} 33...
b3 {[%clk 0:01:36.1]} 34. cxb3 {[%clk 0:00:26.2]} 34... cxb3 {[%clk 0:01:37]}
35. Kd2 {[%clk 0:00:25.6]} 35... Kb4 {[%clk 0:01:35.8]} 36. Ng4 {[%clk 0:00:18]}
36... b2 {[%clk 0:01:31.7]} 37. Rb1 {[%clk 0:00:17.5]} 37... Kb3 {[%clk
0:01:15.4]} 38. Ne3 {[%clk 0:00:11.8]} 38... Rd7 {[%clk 0:01:15.4]} 39. Ke1
{[%clk 0:00:05]} 39... Ka2 {[%clk 0:01:03.3]} 40. Rd1 {[%clk 0:00:01.8]} 40...
b1=Q {[%clk 0:01:02]} 41. Rxb1 {[%clk 0:00:01.7]} 41... Kxb1 {[%clk 0:01:02.9]}
0-1

[Event "*** Titled Tuesday Blitz"]
[Site "Chess.com"]
[Date "2020.12.29"]
[Round "5"]
[White "alexg2003"]
[Black "torsten64"]
[Result "1-0"]
[WhiteElo "2394"]
[BlackElo "2140"]
[TimeControl "180+1"]
[EndTime "10:54:23 PST"]
[Termination "alexg2003 won by resignation"]

1. e4 {[%clk 0:02:59.8]} 1... c5 {[%clk 0:02:59.4]} 2. Nf3 {[%clk 0:02:58.6]}
2... d6 {[%clk 0:02:59.2]} 3. g3 {[%clk 0:02:58.8]} 3... g6 {[%clk 0:02:55.9]}
4. Bg2 {[%clk 0:02:58.7]} 4... Bg7 {[%clk 0:02:55.5]} 5. O-O {[%clk 0:02:59]}
5... Nc6 {[%clk 0:02:55.6]} 6. c3 {[%clk 0:02:58.5]} 6... b5 {[%clk 0:02:52.5]}
7. d4 {[%clk 0:02:57.3]} 7... Bb7 {[%clk 0:02:42.4]} 8. a4 {[%clk 0:02:54.3]}
8... a6 {[%clk 0:02:38.7]} 9. axb5 {[%clk 0:02:42.9]} 9... axb5 {[%clk
0:02:37.3]} 10. Rxa8 {[%clk 0:02:42.9]} 10... Qxa8 {[%clk 0:02:33.9]} 11. Na3
{[%clk 0:02:42.8]} 11... b4 {[%clk 0:02:29.6]} 12. Nb5 {[%clk 0:02:42.8]} 12...
Qa5 {[%clk 0:02:22.3]} 13. c4 {[%clk 0:02:34.1]} 13... Ba6 {[%clk 0:01:59.3]}
14. dxc5 {[%clk 0:01:46]} 14... dxc5 {[%clk 0:01:58.2]} 15. Be3 {[%clk
0:01:09.1]} 15... Bxb5 {[%clk 0:01:56.2]} 16. cxb5 {[%clk 0:01:10]} 16... Qxb5
{[%clk 0:01:55.8]} 17. Qa1 {[%clk 0:01:09.6]} 17... Nf6 {[%clk 0:01:46.2]} 18.
Rc1 {[%clk 0:01:00.8]} 18... Nd7 {[%clk 0:01:31.6]} 19. Qa8+ {[%clk 0:00:50.4]}
19... Qb8 {[%clk 0:01:25.3]} 20. Qxc6 {[%clk 0:00:49.1]} 20... Bxb2 {[%clk
0:01:18.1]} 21. Rd1 {[%clk 0:00:48.2]} 21... O-O {[%clk 0:00:51.1]} 22. Rxd7
{[%clk 0:00:40.4]} 22... b3 {[%clk 0:00:48.4]} 23. Nd2 {[%clk 0:00:30.1]} 23...
Bc3 {[%clk 0:00:43.7]} 24. Nxb3 {[%clk 0:00:29.3]} 24... Qxb3 {[%clk 0:00:42.2]}
25. Qxc5 {[%clk 0:00:29.2]} 25... Qb1+ {[%clk 0:00:38.5]} 26. Bf1 {[%clk
0:00:29.4]} 26... Bf6 {[%clk 0:00:36.5]} 27. e5 {[%clk 0:00:28.8]} 27... Bg7
{[%clk 0:00:35.8]} 28. e6 {[%clk 0:00:28.1]} 28... fxe6 {[%clk 0:00:34.9]} 29.
Qxe7 {[%clk 0:00:27.7]} 29... Qb2 {[%clk 0:00:32.1]} 30. Qxe6+ {[%clk
0:00:24.7]} 30... Kh8 {[%clk 0:00:30.9]} 31. Qd6 {[%clk 0:00:18.2]} 31... Qa1
{[%clk 0:00:28.3]} 32. Rd8 {[%clk 0:00:17.5]} 32... Kg8 {[%clk 0:00:21.6]} 33.
Bc5 {[%clk 0:00:16]} 33... Kh8 {[%clk 0:00:19.4]} 1-0

[Event "*** Titled Tuesday Blitz"]
[Site "Chess.com"]
[Date "2020.12.29"]
[Round "5"]
[White "PhoenixFire8"]
[Black "rududuyk"]
[Result "1-0"]
[WhiteElo "2445"]
[BlackElo "2276"]
[TimeControl "180+1"]
[EndTime "10:54:23 PST"]
[Termination "PhoenixFire8 won on time"]

1. Nf3 {[%clk 0:03:00.9]} 1... d6 {[%clk 0:02:56.8]} 2. d4 {[%clk 0:03:00]} 2...
f5 {[%clk 0:02:51.3]} 3. Nc3 {[%clk 0:02:57.8]} 3... Nf6 {[%clk 0:02:51.4]} 4.
Bg5 {[%clk 0:02:58.4]} 4... Ne4 {[%clk 0:02:43.2]} 5. Qd3 {[%clk 0:02:38.1]}
5... Nxg5 {[%clk 0:02:19.4]} 6. Nxg5 {[%clk 0:02:36.6]} 6... e6 {[%clk 0:02:19]}
7. Nf3 {[%clk 0:02:30.2]} 7... d5 {[%clk 0:02:07.2]} 8. O-O-O {[%clk 0:02:28.6]}
8... c5 {[%clk 0:01:47.4]} 9. Ne5 {[%clk 0:01:52.4]} 9... cxd4 {[%clk
0:01:35.9]} 10. Qxd4 {[%clk 0:01:43.6]} 10... Nc6 {[%clk 0:01:34.9]} 11. Nxc6
{[%clk 0:01:42.2]} 11... bxc6 {[%clk 0:01:34]} 12. e4 {[%clk 0:01:40.3]} 12...
Qg5+ {[%clk 0:01:19.7]} 13. Kb1 {[%clk 0:01:33.5]} 13... fxe4 {[%clk 0:01:18.5]}
14. Qa4 {[%clk 0:01:08.3]} 14... Bd7 {[%clk 0:00:57.1]} 15. Qa6 {[%clk
0:01:07.6]} 15... Bd6 {[%clk 0:00:39.3]} 16. Nxe4 {[%clk 0:00:46.2]} 16... dxe4
{[%clk 0:00:25.5]} 17. Rxd6 {[%clk 0:00:47.1]} 17... Rd8 {[%clk 0:00:24.2]} 18.
Bc4 {[%clk 0:00:42.1]} 18... O-O {[%clk 0:00:24.4]} 19. Rhd1 {[%clk 0:00:41.8]}
19... Bc8 {[%clk 0:00:19]} 20. Bxe6+ {[%clk 0:00:34.3]} 20... Bxe6 {[%clk
0:00:17.6]} 21. Qxc6 {[%clk 0:00:31.1]} 21... Rxd6 {[%clk 0:00:15.9]} 22. Qxd6
{[%clk 0:00:31.8]} 22... Bf7 {[%clk 0:00:12.3]} 23. g3 {[%clk 0:00:31.9]} 23...
Qa5 {[%clk 0:00:10]} 24. b3 {[%clk 0:00:29.3]} 24... Qb6 {[%clk 0:00:07.5]} 25.
Qe5 {[%clk 0:00:24.6]} 25... Qxf2 {[%clk 0:00:06.6]} 26. Qxe4 {[%clk 0:00:22.1]}
26... Rc8 {[%clk 0:00:05.3]} 27. Qd3 {[%clk 0:00:12.8]} 1-0

[Event "*** Titled Tuesday Blitz"]
[Site "Chess.com"]
[Date "2020.12.29"]
[Round "5"]
[White "GelmanAlexander"]
[Black "ChessQueen"]
[Result "0-1"]
[WhiteElo "2569"]
[BlackElo "2750"]
[TimeControl "180+1"]
[EndTime "10:54:25 PST"]
[Termination "ChessQueen won on time"]

1. d4 {[%clk 0:03:00.9]} 1... Nf6 {[%clk 0:02:59.1]} 2. Nc3 {[%clk 0:03:00.2]}
2... c5 {[%clk 0:02:55.9]} 3. d5 {[%clk 0:03:00]} 3... d6 {[%clk 0:02:55.7]} 4.
e4 {[%clk 0:03:00]} 4... g6 {[%clk 0:02:56.2]} 5. f4 {[%clk 0:02:59.8]} 5... Bg7
{[%clk 0:02:56.1]} 6. Nf3 {[%clk 0:02:59.3]} 6... a6 {[%clk 0:02:55]} 7. e5
{[%clk 0:02:56.6]} 7... Nfd7 {[%clk 0:02:45.7]} 8. h4 {[%clk 0:02:44.3]} 8...
dxe5 {[%clk 0:02:42.8]} 9. h5 {[%clk 0:02:44.4]} 9... exf4 {[%clk 0:02:33.5]}
10. Bxf4 {[%clk 0:02:44.1]} 10... Qb6 {[%clk 0:02:21.8]} 11. Rb1 {[%clk
0:02:25.6]} 11... O-O {[%clk 0:02:05.1]} 12. hxg6 {[%clk 0:02:23.2]} 12... fxg6
{[%clk 0:02:03.6]} 13. g3 {[%clk 0:01:04.9]} 13... Qb4 {[%clk 0:01:42.2]} 14.
Rh4 {[%clk 0:00:53.4]} 14... Bxc3+ {[%clk 0:01:29.1]} 15. bxc3 {[%clk
0:00:52.9]} 15... Qxc3+ {[%clk 0:01:29.5]} 16. Kf2 {[%clk 0:00:51.3]} 16... Nf6
{[%clk 0:01:12.1]} 17. Rb3 {[%clk 0:00:45.6]} 17... Ne4+ {[%clk 0:01:06]} 18.
Kg1 {[%clk 0:00:41.1]} 18... Qf6 {[%clk 0:01:00.4]} 19. Qe1 {[%clk 0:00:28]}
19... Bf5 {[%clk 0:00:59.1]} 20. Rxb7 {[%clk 0:00:27.6]} 20... Nd7 {[%clk
0:00:57.5]} 21. Bd3 {[%clk 0:00:24.6]} 21... g5 {[%clk 0:00:51.6]} 22. Bxe4
{[%clk 0:00:17]} 22... gxh4 {[%clk 0:00:51.9]} 23. Nxh4 {[%clk 0:00:13]} 23...
Qd4+ {[%clk 0:00:50.8]} 24. Kh2 {[%clk 0:00:07.4]} 24... Qxe4 {[%clk 0:00:50.3]}
25. Qxe4 {[%clk 0:00:07.6]} 25... Bxe4 {[%clk 0:00:51.1]} 26. Rxd7 {[%clk
0:00:08.4]} 26... Rf7 {[%clk 0:00:49.8]} 27. c4 {[%clk 0:00:08.4]} 27... Bd3
{[%clk 0:00:48.3]} 28. Nf3 {[%clk 0:00:05.9]} 28... Bxc4 {[%clk 0:00:45.2]} 29.
Ne5 {[%clk 0:00:06.4]} 29... Bb5 {[%clk 0:00:45.6]} 30. Rc7 {[%clk 0:00:03.7]}
30... Rg7 {[%clk 0:00:33.6]} 31. Bh6 {[%clk 0:00:03.6]} 31... Rd8 {[%clk
0:00:29.8]} 32. Bxg7 {[%clk 0:00:03.2]} 32... Kxg7 {[%clk 0:00:30.4]} 33. Rxe7+
{[%clk 0:00:03.1]} 33... Kf6 {[%clk 0:00:30.8]} 34. Re6+ {[%clk 0:00:03.5]}
34... Kf5 {[%clk 0:00:30.1]} 0-1

[Event "*** Titled Tuesday Blitz"]
[Site "Chess.com"]
[Date "2020.12.29"]
[Round "5"]
[White "PavlovDanila"]
[Black "Koksal06"]
[Result "0-1"]
[WhiteElo "2677"]
[BlackElo "2457"]
[TimeControl "180+1"]
[EndTime "10:54:26 PST"]
[Termination "Koksal06 won on time"]

1. e4 {[%clk 0:03:00.9]} 1... c6 {[%clk 0:03:00.4]} 2. Nc3 {[%clk 0:03:00.6]}
2... d5 {[%clk 0:03:01.3]} 3. Nf3 {[%clk 0:03:01.1]} 3... Bg4 {[%clk 0:03:01.3]}
4. h3 {[%clk 0:03:01.2]} 4... Bxf3 {[%clk 0:03:02]} 5. Qxf3 {[%clk 0:03:01.9]}
5... e6 {[%clk 0:03:02.9]} 6. d3 {[%clk 0:03:02.4]} 6... Nd7 {[%clk 0:03:02.6]}
7. Qg3 {[%clk 0:03:02]} 7... Ngf6 {[%clk 0:03:02.4]} 8. Bd2 {[%clk 0:02:55]}
8... g6 {[%clk 0:02:47.7]} 9. Be2 {[%clk 0:02:48.6]} 9... Bg7 {[%clk 0:02:47.9]}
10. O-O {[%clk 0:02:48.1]} 10... O-O {[%clk 0:02:48.1]} 11. Kh1 {[%clk
0:02:42.6]} 11... dxe4 {[%clk 0:02:38.9]} 12. dxe4 {[%clk 0:02:39.1]} 12... Nc5
{[%clk 0:02:39.1]} 13. Qe3 {[%clk 0:02:05]} 13... Ncxe4 {[%clk 0:02:36.7]} 14.
Nxe4 {[%clk 0:02:05.9]} 14... Nxe4 {[%clk 0:02:36.7]} 15. Bb4 {[%clk 0:02:06.6]}
15... c5 {[%clk 0:02:27.2]} 16. Ba3 {[%clk 0:02:06.4]} 16... Qd4 {[%clk
0:02:19.2]} 17. Qf4 {[%clk 0:01:24.8]} 17... Be5 {[%clk 0:01:47]} 18. Qh4 {[%clk
0:01:03.9]} 18... g5 {[%clk 0:01:47.2]} 19. Qh5 {[%clk 0:00:38.9]} 19... Nxf2+
{[%clk 0:01:47.1]} 20. Rxf2 {[%clk 0:00:38.6]} 20... Qxf2 {[%clk 0:01:48]} 21.
Qxg5+ {[%clk 0:00:19.9]} 21... Bg7 {[%clk 0:01:48.3]} 22. Bd3 {[%clk 0:00:20.2]}
22... b6 {[%clk 0:01:42]} 23. Rf1 {[%clk 0:00:19.1]} 23... Qd4 {[%clk
0:01:27.4]} 24. b3 {[%clk 0:00:19.2]} 24... f5 {[%clk 0:01:24.6]} 25. Bc1 {[%clk
0:00:16.8]} 25... Qf6 {[%clk 0:01:22.9]} 26. Qe3 {[%clk 0:00:16.8]} 26... Rad8
{[%clk 0:01:20.7]} 27. g4 {[%clk 0:00:15.6]} 27... Qe5 {[%clk 0:01:08.3]} 28.
Qxe5 {[%clk 0:00:09.6]} 28... Bxe5 {[%clk 0:01:08.1]} 29. Bg5 {[%clk 0:00:09.3]}
29... Bf6 {[%clk 0:01:05.5]} 30. Bh6 {[%clk 0:00:09.2]} 30... Bg7 {[%clk
0:01:05.3]} 31. Bg5 {[%clk 0:00:08.7]} 31... Rd4 {[%clk 0:01:04.2]} 32. gxf5
{[%clk 0:00:07.1]} 32... exf5 {[%clk 0:01:05.1]} 33. Rxf5 {[%clk 0:00:06.3]}
33... Rxf5 {[%clk 0:01:03.2]} 34. Bxf5 {[%clk 0:00:07.2]} 34... Kh8 {[%clk
0:00:59.1]} 35. Be3 {[%clk 0:00:05.5]} 35... Rd1+ {[%clk 0:00:58.3]} 36. Kg2
{[%clk 0:00:05.3]} 36... Bd4 {[%clk 0:00:58.8]} 37. Bf4 {[%clk 0:00:04.5]} 37...
Kg7 {[%clk 0:00:53.4]} 38. Bd3 {[%clk 0:00:04.1]} 38... Re1 {[%clk 0:00:42.1]}
0-1

[Event "*** Titled Tuesday Blitz"]
[Site "Chess.com"]
[Date "2020.12.29"]
[Round "5"]
[White "grunbergmihai"]
[Black "Carnivoras"]
[Result "1-0"]
[WhiteElo "2439"]
[BlackElo "2595"]
[TimeControl "180+1"]
[EndTime "10:54:26 PST"]
[Termination "grunbergmihai won by resignation"]

1. Nf3 {[%clk 0:03:00.6]} 1... d5 {[%clk 0:02:59.4]} 2. c4 {[%clk 0:02:55.1]}
2... c6 {[%clk 0:02:57.7]} 3. g3 {[%clk 0:02:54.5]} 3... Nf6 {[%clk 0:02:57]} 4.
Bg2 {[%clk 0:02:55.4]} 4... g6 {[%clk 0:02:54.5]} 5. O-O {[%clk 0:02:56.3]} 5...
Bg7 {[%clk 0:02:53.8]} 6. cxd5 {[%clk 0:02:38.5]} 6... cxd5 {[%clk 0:02:51.6]}
7. d4 {[%clk 0:02:34.1]} 7... O-O {[%clk 0:02:48.4]} 8. Nc3 {[%clk 0:02:19.4]}
8... Nc6 {[%clk 0:02:44.6]} 9. Ne5 {[%clk 0:02:19]} 9... Nxe5 {[%clk 0:02:44.3]}
10. dxe5 {[%clk 0:02:17]} 10... Ng4 {[%clk 0:02:44.9]} 11. Qxd5 {[%clk
0:02:15.4]} 11... Nxe5 {[%clk 0:02:41.7]} 12. Bf4 {[%clk 0:02:13.5]} 12... Nc6
{[%clk 0:02:36.5]} 13. Rfd1 {[%clk 0:02:09.8]} 13... Be6 {[%clk 0:01:22.5]} 14.
Qb5 {[%clk 0:01:59.3]} 14... Qc8 {[%clk 0:01:20.8]} 15. Nd5 {[%clk 0:01:51.9]}
15... Bxd5 {[%clk 0:00:48.3]} 16. Bxd5 {[%clk 0:01:46.4]} 16... Nd4 {[%clk
0:00:47.7]} 17. Qd3 {[%clk 0:01:23.4]} 17... Rd8 {[%clk 0:00:22.2]} 18. Rac1
{[%clk 0:01:21.8]} 18... Qg4 {[%clk 0:00:21.6]} 19. f3 {[%clk 0:01:09.4]} 19...
Qd7 {[%clk 0:00:19.6]} 20. Bb3 {[%clk 0:00:57.8]} 20... Nxb3 {[%clk 0:00:18]}
21. Qxb3 {[%clk 0:00:52.6]} 21... Qe8 {[%clk 0:00:15.7]} 22. Rc7 {[%clk
0:00:46.9]} 22... Rxd1+ {[%clk 0:00:14.6]} 23. Qxd1 {[%clk 0:00:46.8]} 23... e5
{[%clk 0:00:14.8]} 24. Be3 {[%clk 0:00:44.4]} 24... Qb5 {[%clk 0:00:14.3]} 25.
Qd7 {[%clk 0:00:39.7]} 25... Qxd7 {[%clk 0:00:08.4]} 26. Rxd7 {[%clk 0:00:39.4]}
26... b6 {[%clk 0:00:08.9]} 27. b4 {[%clk 0:00:35.2]} 27... Bf8 {[%clk
0:00:06.4]} 28. b5 {[%clk 0:00:34.9]} 28... a6 {[%clk 0:00:05.9]} 29. a4 {[%clk
0:00:31.4]} 29... axb5 {[%clk 0:00:04.8]} 30. axb5 {[%clk 0:00:31.3]} 30... Ra5
{[%clk 0:00:05]} 31. Rd5 {[%clk 0:00:30.8]} 31... Bc5 {[%clk 0:00:03.6]} 32.
Bxc5 {[%clk 0:00:30.4]} 32... Rxb5 {[%clk 0:00:04.2]} 33. Rd8+ {[%clk
0:00:28.5]} 1-0

[Event "*** Titled Tuesday Blitz"]
[Site "Chess.com"]
[Date "2020.12.29"]
[Round "5"]
[White "vladgoncharov"]
[Black "ErikRonka"]
[Result "1-0"]
[WhiteElo "2552"]
[BlackElo "2376"]
[TimeControl "180+1"]
[EndTime "10:54:26 PST"]
[Termination "vladgoncharov won by resignation"]

1. e4 {[%clk 0:03:00.9]} 1... c6 {[%clk 0:02:59.9]} 2. d4 {[%clk 0:02:58.5]}
2... d5 {[%clk 0:03:00.8]} 3. e5 {[%clk 0:02:58.7]} 3... c5 {[%clk 0:03:00.9]}
4. dxc5 {[%clk 0:02:52]} 4... e6 {[%clk 0:03:01.4]} 5. Be3 {[%clk 0:02:49.9]}
5... Nd7 {[%clk 0:03:01]} 6. Bb5 {[%clk 0:02:44.4]} 6... Ne7 {[%clk 0:03:01]} 7.
Nf3 {[%clk 0:02:39.1]} 7... Nf5 {[%clk 0:03:00.3]} 8. Bd4 {[%clk 0:02:29.3]}
8... a6 {[%clk 0:02:50.4]} 9. Bxd7+ {[%clk 0:02:26.1]} 9... Bxd7 {[%clk
0:02:51.3]} 10. c3 {[%clk 0:02:25.9]} 10... Nxd4 {[%clk 0:02:44.1]} 11. cxd4
{[%clk 0:02:21.2]} 11... b6 {[%clk 0:02:44.4]} 12. cxb6 {[%clk 0:02:09.7]} 12...
Qxb6 {[%clk 0:02:45.3]} 13. O-O {[%clk 0:02:00.5]} 13... Qxb2 {[%clk 0:02:43.2]}
14. Nbd2 {[%clk 0:01:58.6]} 14... Bb5 {[%clk 0:02:29.6]} 15. Re1 {[%clk
0:01:58.1]} 15... Be7 {[%clk 0:02:24]} 16. Re3 {[%clk 0:01:46.6]} 16... Qb4
{[%clk 0:01:58.7]} 17. a4 {[%clk 0:01:39.2]} 17... Bd7 {[%clk 0:01:29.4]} 18. a5
{[%clk 0:01:37.4]} 18... Qb7 {[%clk 0:00:53.4]} 19. Rb3 {[%clk 0:01:35.4]} 19...
Qa7 {[%clk 0:00:51.7]} 20. Nf1 {[%clk 0:01:21.8]} 20... O-O {[%clk 0:00:51.4]}
21. Ng3 {[%clk 0:01:21.4]} 21... Rab8 {[%clk 0:00:50.4]} 22. Re3 {[%clk
0:01:18.1]} 22... Rb2 {[%clk 0:00:44.5]} 23. h4 {[%clk 0:01:13.5]} 23... Rc8
{[%clk 0:00:42.6]} 24. Ng5 {[%clk 0:01:07.6]} 24... h6 {[%clk 0:00:41.8]} 25.
Qh5 {[%clk 0:01:01.3]} 25... hxg5 {[%clk 0:00:35.1]} 26. hxg5 {[%clk 0:01:02.2]}
26... Qxd4 {[%clk 0:00:18.8]} 27. Rae1 {[%clk 0:00:45]} 27... Qf4 {[%clk
0:00:16.1]} 28. Rf3 {[%clk 0:00:40.5]} 28... Qb4 {[%clk 0:00:13.4]} 29. Qxf7+
{[%clk 0:00:39.3]} 29... Kh8 {[%clk 0:00:13.1]} 30. Qh5+ {[%clk 0:00:32.3]}
30... Kg8 {[%clk 0:00:12.7]} 31. g6 {[%clk 0:00:32.5]} 31... Qxe1+ {[%clk
0:00:12.1]} 32. Kh2 {[%clk 0:00:32.7]} 32... Bf6 {[%clk 0:00:06.4]} 33. Rxf6
{[%clk 0:00:26.4]} 1-0

[Event "*** Titled Tuesday Blitz"]
[Site "Chess.com"]
[Date "2020.12.29"]
[Round "5"]
[White "annamaja"]
[Black "Ave_Mariia"]
[Result "0-1"]
[WhiteElo "2294"]
[BlackElo "2500"]
[TimeControl "180+1"]
[EndTime "10:54:26 PST"]
[Termination "Ave_Mariia won by checkmate"]

1. e4 {[%clk 0:03:00.9]} 1... c5 {[%clk 0:02:57.4]} 2. Nf3 {[%clk 0:03:00.4]}
2... d6 {[%clk 0:02:57.7]} 3. d4 {[%clk 0:03:00.4]} 3... cxd4 {[%clk 0:02:58.4]}
4. Nxd4 {[%clk 0:03:01.3]} 4... Nf6 {[%clk 0:02:59]} 5. Nc3 {[%clk 0:03:01.9]}
5... g6 {[%clk 0:02:59.7]} 6. Be2 {[%clk 0:03:02]} 6... Bg7 {[%clk 0:02:59.8]}
7. O-O {[%clk 0:03:00.6]} 7... O-O {[%clk 0:02:59.8]} 8. f4 {[%clk 0:02:58.2]}
8... Nc6 {[%clk 0:02:58.5]} 9. Be3 {[%clk 0:02:56.9]} 9... Qb6 {[%clk
0:02:33.1]} 10. Qd3 {[%clk 0:02:08.4]} 10... Ng4 {[%clk 0:02:25.7]} 11. Nd5
{[%clk 0:02:02.9]} 11... Qd8 {[%clk 0:02:11.9]} 12. Bxg4 {[%clk 0:01:59.3]}
12... Bxg4 {[%clk 0:02:12.3]} 13. f5 {[%clk 0:01:40.7]} 13... Nxd4 {[%clk
0:02:07.9]} 14. Bxd4 {[%clk 0:01:37.6]} 14... Be2 {[%clk 0:02:08.2]} 15. Qxe2
{[%clk 0:01:29.7]} 15... Bxd4+ {[%clk 0:02:08.5]} 16. Kh1 {[%clk 0:01:30.2]}
16... Be5 {[%clk 0:02:02.2]} 17. c3 {[%clk 0:01:22.7]} 17... e6 {[%clk
0:02:02.3]} 18. Ne3 {[%clk 0:01:20.5]} 18... Qh4 {[%clk 0:01:58.5]} 19. Ng4
{[%clk 0:01:05.3]} 19... Rae8 {[%clk 0:01:50.8]} 20. Nxe5 {[%clk 0:00:45.3]}
20... dxe5 {[%clk 0:01:51.7]} 21. f6 {[%clk 0:00:46]} 21... Rd8 {[%clk
0:01:44.9]} 22. g3 {[%clk 0:00:44.1]} 22... Qg5 {[%clk 0:01:42.8]} 23. Rad1
{[%clk 0:00:25.3]} 23... Rxd1 {[%clk 0:01:42.8]} 24. Qxd1 {[%clk 0:00:26.2]}
24... Qe3 {[%clk 0:01:38.6]} 25. Re1 {[%clk 0:00:25.8]} 25... Qf2 {[%clk
0:01:36.1]} 26. Rf1 {[%clk 0:00:21.9]} 26... Qxb2 {[%clk 0:01:33.6]} 27. Qd3
{[%clk 0:00:18.7]} 27... h6 {[%clk 0:01:18]} 28. Qe3 {[%clk 0:00:17.5]} 28...
Kh7 {[%clk 0:01:16.2]} 29. Qxa7 {[%clk 0:00:16.9]} 29... Rd8 {[%clk 0:01:13.1]}
30. Rf2 {[%clk 0:00:06]} 30... Qb1+ {[%clk 0:01:13.2]} 31. Kg2 {[%clk
0:00:05.4]} 31... Qxe4+ {[%clk 0:01:13.8]} 32. Kh3 {[%clk 0:00:04.6]} 32... g5
{[%clk 0:00:49.1]} 33. Qc5 {[%clk 0:00:04.4]} 33... g4+ {[%clk 0:00:45.5]} 34.
Kh4 {[%clk 0:00:05]} 34... Qg6 {[%clk 0:00:40.8]} 35. Qe3 {[%clk 0:00:05.5]}
35... Rd3 {[%clk 0:00:38.2]} 36. Qxe5 {[%clk 0:00:05.6]} 36... Rd5 {[%clk
0:00:34.8]} 37. Qf4 {[%clk 0:00:04.1]} 37... Rh5# {[%clk 0:00:34.1]} 0-1